fUST/lending_fUST_20260525
["ID","MTS","AMOUNT","RATE_DAILY","PERIOD"]
[422986371,1779712239000,-500.0,8.928e-05,2]
[422986407,1779712239000,-57.03046909,9.109e-05,2]
[422986368,1779712239000,-2351.0,8.747e-05,2]
[422986366,1779712239000,-180.0947818,8.733e-05,2]
[422986310,1779712239000,-500.0,8.38e-05,2]
[422986324,1779712239000,-500.0,8.38e-05,2]
[422986328,1779712239000,-500.0,8.38e-05,2]
[422986312,1779712239000,-500.0,8.38e-05,2]
[422986314,1779712239000,-363.98635349,8.38e-05,2]
[422986318,1779712239000,-500.0,8.38e-05,2]
[422986316,1779712239000,-136.01364651,8.38e-05,2]
[422986330,1779712239000,-204.32502231,8.381e-05,2]
[422986332,1779712239000,-720.0,8.445e-05,2]
[422986346,1779712239000,-500.0,8.654e-05,2]
[422986345,1779712239000,-500.0,8.654e-05,2]
[422986334,1779712239000,-1895.5835684,8.464e-05,2]
[422986308,1779712239000,-500.0,8.38e-05,2]
[422986351,1779712239000,-500.0,8.654e-05,2]
[422986358,1779712239000,-385.87900629,8.733e-05,7]
[422986348,1779712239000,-500.0,8.654e-05,2]
[422986355,1779712239000,-155.99215292,8.654e-05,2]
[422986343,1779712239000,-500.0,8.654e-05,2]
[422986350,1779712239000,-500.0,8.654e-05,2]
[422986341,1779712239000,-500.0,8.654e-05,2]
[422986353,1779712239000,-500.0,8.654e-05,2]
[422986347,1779712239000,-500.0,8.654e-05,2]
[422986337,1779712239000,-500.0,8.654e-05,2]
[422986339,1779712239000,-500.0,8.654e-05,2]
[422986335,1779712239000,-2022.10054291,8.564e-05,2]
[422986349,1779712239000,-500.0,8.654e-05,2]
[422986535,1779712240000,-1236.39766523,9.123e-05,2]
[422986536,1779712240000,-293.51256502,9.123e-05,2]
[422986750,1779712243000,-500.0,9.476e-05,2]
[422986751,1779712243000,-500.0,9.476e-05,2]
[422986753,1779712243000,-332.2415971,9.479e-05,7]
[422986755,1779712243000,-771.75801259,9.479e-05,7]
[422986748,1779712243000,-500.0,9.476e-05,2]
[422986754,1779712243000,-236.72025151,9.479e-05,7]
[422986752,1779712243000,-500.0,9.476e-05,2]
[422986762,1779712243000,-729.03834413,9.479e-05,7]
[422986757,1779712243000,-279.94829378,9.479e-05,7]
[422986758,1779712243000,-154.63993332,9.479e-05,7]
[422986768,1779712243000,-3720.3106076,9.624e-05,2]
[422986765,1779712243000,-606.35301526,9.479e-05,7]
[422986749,1779712243000,-500.0,9.476e-05,2]
[422986761,1779712243000,-233.36149068,9.479e-05,7]
[422986769,1779712243000,-2269.60211203,9.648e-05,2]
[422986756,1779712243000,-160.07206148,9.479e-05,7]
[422986747,1779712243000,-864.0,9.29e-05,2]
[422986746,1779712243000,-500.0,9.202e-05,2]
[422986738,1779712243000,-500.0,9.202e-05,2]
[422986770,1779712243000,-500.0,9.666e-05,2]
[422986728,1779712243000,-243.90204193,9.181e-05,7]
[422986726,1779712243000,-166.12079855,9.181e-05,7]
[422986725,1779712243000,-1472.79629482,9.123e-05,2]
[422986724,1779712243000,-302.89177779,8.38e-05,2]
[422986741,1779712243000,-500.0,9.202e-05,2]
[422986740,1779712243000,-500.0,9.202e-05,2]
[422986735,1779712243000,-360.1895636,9.181e-05,2]
[422986743,1779712243000,-500.0,9.202e-05,2]
[422986744,1779712243000,-500.0,9.202e-05,2]
[422986745,1779712243000,-219.18,9.202e-05,2]
[422986729,1779712243000,-546.7787581,9.181e-05,7]
[422986733,1779712243000,-441.33016053,9.181e-05,7]
[422986731,1779712243000,-454.76476145,9.181e-05,7]
[422986739,1779712243000,-500.0,9.202e-05,2]
[422986737,1779712243000,-447.43837984,9.202e-05,2]
[422986742,1779712243000,-500.0,9.202e-05,2]
[422986727,1779712243000,-578.81850944,9.181e-05,7]
[422986763,1779712243000,-184.98176395,9.479e-05,7]
[422986760,1779712243000,-246.35680868,9.479e-05,7]
[422986759,1779712243000,-169.20130168,9.479e-05,7]
[422986788,1779712243000,-177.0,9.879e-05,2]
[422986786,1779712243000,-500.0,9.75e-05,2]
[422986792,1779712243000,-500.0,9.94e-05,2]
[422986794,1779712243000,-1688.63,9.94e-05,2]
[422986795,1779712243000,-500.0,9.94e-05,2]
[422986793,1779712243000,-500.0,9.94e-05,2]
[422986789,1779712243000,-500.0,9.94e-05,2]
[422986796,1779712243000,-500.0,9.94e-05,2]
[422986798,1779712243000,-260.0,0.0001002,2]
[422986802,1779712243000,-500.0,0.00010024,2]
[422986803,1779712243000,-216.66322432,0.00010024,2]
[422986797,1779712243000,-317.80511448,9.94e-05,2]
[422986799,1779712243000,-823.0,0.0001002,2]
[422986801,1779712243000,-500.0,0.00010024,2]
[422986800,1779712243000,-423.0,0.0001002,2]
[422986791,1779712243000,-654.27,9.94e-05,2]
[422986785,1779712243000,-500.0,9.75e-05,2]
[422986790,1779712243000,-500.0,9.94e-05,2]
[422986784,1779712243000,-627.08463,9.75e-05,2]
[422986766,1779712243000,-540.2843454,9.479e-05,2]
[422986764,1779712243000,-432.36289301,9.479e-05,7]
[422986767,1779712243000,-1356.0,9.622e-05,2]
[422986772,1779712243000,-500.0,9.666e-05,2]
[422986782,1779712243000,-500.0,9.75e-05,2]
[422986787,1779712243000,-757.94126908,9.777e-05,7]
[422986773,1779712243000,-654.27,9.666e-05,2]
[422986771,1779712243000,-500.0,9.666e-05,2]
[422986774,1779712243000,-500.0,9.666e-05,2]
[422986775,1779712243000,-500.0,9.666e-05,2]
[422986781,1779712243000,-250.0,9.705e-05,2]
[422986780,1779712243000,-500.0,9.666e-05,2]
[422986777,1779712243000,-500.0,9.666e-05,2]
[422986776,1779712243000,-1688.63,9.666e-05,2]
[422986779,1779712243000,-500.0,9.666e-05,2]
[422986778,1779712243000,-500.0,9.666e-05,2]
[422986783,1779712243000,-543.28286751,9.75e-05,2]
[422986866,1779712249000,-292.2066766,8.38e-05,2]
[422986865,1779712249000,-500.0,8.38e-05,2]
[422986864,1779712249000,-5000.0,8.296e-05,2]
[422986863,1779712249000,-500.0,8.28e-05,2]
[422986869,1779712273000,-5000.0,8.296e-05,2]
[422986872,1779712289000,166.851013,3.746e-05,2]
[422986871,1779712289000,-789.28282249,8.047e-05,2]
[422986874,1779712289000,166.851013,4.578e-05,2]
[422986875,1779712289000,166.851013,4.995e-05,2]
[422986873,1779712289000,166.851013,4.162e-05,2]
[422986876,1779712306000,-166.851013,5.411e-05,2]
[422986878,1779712461000,-5000.0,5.769e-05,2]
[422986879,1779712462000,-77.10197373,5.827e-05,2]
[422986931,1779712729000,-5000000.0,0.00020026,30]
[422986932,1779712736000,-5000000.0,0.00020026,30]
[422986933,1779712739000,-5000000.0,0.00020026,30]
[422986934,1779712748000,-5000000.0,0.00020026,30]
[422986935,1779712754000,-5000000.0,0.00020026,30]
[422986936,1779712757000,-5000000.0,0.00020026,30]
[422986937,1779712765000,291.4994474,4.706e-05,2]
[422986938,1779712765000,11.2226173,4.706e-05,2]
[422986939,1779712778000,199.2882959,0.00012652,60]
[422986940,1779712810000,-151.0,5.73e-05,7]
[422986949,1779713028000,13144.9694145,4.495e-05,2]
[422986948,1779713028000,1000.0,4.495e-05,2]
[422986947,1779713028000,1000.0,4.495e-05,2]
[422986946,1779713028000,1000.0,4.495e-05,2]
[422986945,1779713028000,988.7773827,4.495e-05,2]
[422986951,1779713058000,-5000000.0,0.00020055,30]
[422986952,1779713060000,10000.0,0.00017808,120]
[422986953,1779713062000,-5000000.0,0.00020055,30]
[422986954,1779713065000,-5000000.0,0.00020055,30]
[422986955,1779713069000,-3027319.30184266,0.00020055,30]
[422986956,1779713069000,-330.11015102,0.00020055,33]
[422986959,1779713069000,-1955684.83030001,0.00020055,30]
[422986958,1779713069000,-1515.69,0.00020055,30]
[422986957,1779713069000,-15150.06770631,0.00020055,60]
[422986961,1779713072000,-414457.75205556,0.00020055,30]
[422986960,1779713072000,-182570.77658724,0.00020055,30]
[422986963,1779713072000,-49420.0,0.00020055,30]
[422986965,1779713072000,-5590.28341001,0.00020055,30]
[422986966,1779713072000,-6662.59512974,0.00020055,30]
[422986962,1779713072000,-2082454.25315489,0.00020055,30]
[422986967,1779713072000,-1232526.69594275,0.00020055,30]
[422986969,1779713072000,-32847.06455897,0.00020055,30]
[422986968,1779713072000,-344603.36808194,0.00020055,30]
[422986970,1779713072000,-5436.26459283,0.00020055,30]
[422986971,1779713072000,-635599.92595213,0.00020055,30]
[422986964,1779713072000,-7831.02053394,0.00020055,30]
[422986973,1779713074000,-420.0,0.00020055,30]
[422986972,1779713074000,-1203623.35877026,0.00020055,30]
[422986974,1779713074000,-55426.67611561,0.00020055,30]
[422986975,1779713074000,-7062.16174837,0.00020055,30]
[422986976,1779713074000,-9030.48498343,0.00020055,30]
[422986977,1779713074000,-1000000.0,0.00020055,30]
[422986978,1779713074000,-84000.0,0.00020055,32]
[422986984,1779713074000,-200.03543579,0.00020055,30]
[422986980,1779713074000,-7000.0,0.00020055,60]
[422986985,1779713074000,-18785.06945406,0.00020055,60]
[422986986,1779713074000,-18388.49795319,0.00020055,30]
[422986979,1779713074000,-4742.55891341,0.00020055,60]
[422986983,1779713074000,-19693.74646399,0.00020055,30]
[422986982,1779713074000,-4215.0,0.00020055,32]
[422986981,1779713074000,-1040525.27172262,0.00020055,60]
[422986988,1779713075000,-1258.03511872,0.00020055,60]
[422986990,1779713075000,-176964.74749746,0.00020055,60]
[422986991,1779713075000,-4000.0,0.00020055,60]
[422986992,1779713075000,-4000.0,0.00020055,60]
[422986987,1779713075000,-160.0,0.00020055,30]
[422986993,1779713075000,-55035.32455275,0.00020055,30]
[422986994,1779713075000,-200.0,0.00020055,60]
[422986995,1779713075000,-1247813.41523993,0.00020055,30]
[422986996,1779713075000,-12000.0,0.00020055,60]
[422986997,1779713075000,-24233.61603041,0.00020055,30]
[422986989,1779713075000,-1222.0,0.00020055,30]
[422987004,1779713077000,-400.0,0.00020055,30]
[422986999,1779713077000,-200.0,0.00020055,30]
[422986998,1779713077000,-529419.70102142,0.00020055,30]
[422987000,1779713077000,-95901.1350883,0.00020055,60]
[422987001,1779713077000,-86614.87900487,0.00020055,45]
[422987003,1779713077000,-400.0,0.00020055,30]
[422987002,1779713077000,-400.0,0.00020055,30]
[422987005,1779713077000,-400.0,0.00020055,30]
[422987006,1779713077000,-400.0,0.00020055,30]
[422987007,1779713077000,-400.0,0.00020055,30]
[422987011,1779713077000,-400.0,0.00020055,30]
[422987008,1779713077000,-400.0,0.00020055,30]
[422987018,1779713077000,-400.0,0.00020055,30]
[422987015,1779713077000,-400.0,0.00020055,30]
[422987014,1779713077000,-400.0,0.00020055,30]
[422987016,1779713077000,-400.0,0.00020055,30]
[422987009,1779713077000,-400.0,0.00020055,30]
[422987012,1779713077000,-400.0,0.00020055,30]
[422987010,1779713077000,-400.0,0.00020055,30]
[422987013,1779713077000,-400.0,0.00020055,30]
[422987017,1779713077000,-400.0,0.00020055,30]
[422987027,1779713078000,-437.02605469,0.00020055,30]
[422987032,1779713078000,-400.0,0.00020055,30]
[422987033,1779713078000,-400.0,0.00020055,30]
[422987031,1779713078000,-400.0,0.00020055,30]
[422987034,1779713078000,-400.0,0.00020055,30]
[422987029,1779713078000,-400.0,0.00020055,30]
[422987030,1779713078000,-400.0,0.00020055,30]
[422987021,1779713078000,-400.0,0.00020055,30]
[422987023,1779713078000,-400.0,0.00020055,30]
[422987024,1779713078000,-400.0,0.00020055,30]
[422987022,1779713078000,-400.0,0.00020055,30]
[422987020,1779713078000,-400.0,0.00020055,30]
[422987019,1779713078000,-400.0,0.00020055,30]
[422987036,1779713078000,-400.0,0.00020055,30]
[422987026,1779713078000,-400.0,0.00020055,30]
[422987035,1779713078000,-384.91663421,0.00020055,30]
[422987025,1779713078000,-400.0,0.00020055,30]
[422987038,1779713078000,-400.0,0.00020055,30]
[422987037,1779713078000,-400.0,0.00020055,30]
[422987054,1779713078000,-2000.4,0.00020055,30]
[422987053,1779713078000,-5000.0,0.00020055,120]
[422987052,1779713078000,-3000.0,0.00020055,120]
[422987050,1779713078000,-1270.71825973,0.00020055,30]
[422987051,1779713078000,-9999.999999,0.00020055,30]
[422987048,1779713078000,-642.88346417,0.00020055,30]
[422987049,1779713078000,-234.28164476,0.00020055,30]
[422987047,1779713078000,-385.30080885,0.00020055,30]
[422987028,1779713078000,-400.0,0.00020055,30]
[422987046,1779713078000,-84798.67399695,0.00020055,30]
[422987045,1779713078000,-389.15612283,0.00020055,30]
[422987043,1779713078000,-11503.03254354,0.00020055,30]
[422987044,1779713078000,-1982.16392431,0.00020055,60]
[422987039,1779713078000,-400.0,0.00020055,30]
[422987041,1779713078000,-400.0,0.00020055,30]
[422987042,1779713078000,-400.0,0.00020055,30]
[422987040,1779713078000,-400.0,0.00020055,30]
[422987068,1779713079000,-202.40254977,0.00020055,120]
[422987064,1779713079000,-165.65210457,0.00020055,110]
[422987061,1779713079000,-187.838306,0.00020055,110]
[422987062,1779713079000,-187.838306,0.00020055,110]
[422987058,1779713079000,-695.24323876,0.00020055,120]
[422987059,1779713079000,-211.28365734,0.00020055,110]
[422987057,1779713079000,-602.89320838,0.00020055,120]
[422987065,1779713079000,-155.42900553,0.00020055,120]
[422987055,1779713079000,-1601107.36562889,0.00020055,30]
[422987056,1779713079000,-100474.35862157,0.00020055,120]
[422987060,1779713079000,-179.40661805,0.00020055,110]
[422987067,1779713079000,-165.65210457,0.00020055,110]
[422987063,1779713079000,-187.838306,0.00020055,110]
[422987070,1779713079000,-165.65210457,0.00020055,110]
[422987080,1779713079000,-152.47485356,0.00020055,120]
[422987081,1779713079000,-2369998.3949246,0.00020055,120]
[422987079,1779713079000,-1923.31027176,0.00020055,120]
[422987077,1779713079000,-160.12887454,0.00020055,120]
[422987076,1779713079000,-160.12887454,0.00020055,120]
[422987078,1779713079000,-71961.64792623,0.00020055,30]
[422987075,1779713079000,-160.12887454,0.00020055,120]
[422987073,1779713079000,-165.65210457,0.00020055,110]
[422987072,1779713079000,-165.65210457,0.00020055,110]
[422987071,1779713079000,-165.65210457,0.00020055,110]
[422987069,1779713079000,-165.65210457,0.00020055,110]
[422987074,1779713079000,-165.65210455,0.00020055,110]
[422987066,1779713079000,-202.40254977,0.00020055,120]
[422987082,1779713099000,10000.0,0.00017808,120]
[422987086,1779713120000,170.331681,2.928e-05,2]
[422987085,1779713120000,170.331681,2.719e-05,2]
[422987084,1779713120000,170.331681,2.51e-05,2]
[422987083,1779713120000,170.331681,2.301e-05,2]
[422987087,1779713121000,170.331681,3.137e-05,2]
[422987088,1779713121000,170.331681,3.346e-05,2]
[422987090,1779713121000,170.331681,3.765e-05,2]
[422987089,1779713121000,170.331681,3.555e-05,2]
[422987094,1779713122000,170.331681,4.601e-05,2]
[422987093,1779713122000,170.331681,4.392e-05,2]
[422987092,1779713122000,170.331681,4.183e-05,2]
[422987091,1779713122000,170.331681,3.974e-05,2]
[422987095,1779713156000,151.0,0.000178,120]
[422987097,1779713186000,151.0,0.000178,120]
[422987098,1779713216000,151.0,0.000178,120]
[422987099,1779713242000,185.344189,4.897e-05,2]
[422987100,1779713256000,151.0,0.000178,120]
[422987101,1779713296000,151.0,0.000178,120]
[422987102,1779713300000,1000.6876266,0.00017808,120]
[422987104,1779713345000,151.0,0.000178,120]
[422987105,1779713373000,7089.4652496,4.272e-05,2]
[422987106,1779713376000,151.0,0.000178,120]
[422987107,1779713377000,2006.56177282,0.00017808,120]
[422987108,1779713407000,151.0,0.000178,120]
[422987109,1779713414000,5000.0,5.003e-05,2]
[422987110,1779713422000,151.0,5.003e-05,2]
[422987111,1779713424000,151.0,5.003e-05,2]
[422987112,1779713425000,22552.8286312,4.26e-05,2]
[422987113,1779713425000,151.0,5.003e-05,2]
[422987114,1779713429000,151.0,5.003e-05,2]
[422987115,1779713430000,5000.0,5.003e-05,2]
[422987168,1779713432000,-421.87658188,5.259e-05,2]
[422987167,1779713432000,-695.55860858,5.258e-05,2]
[422987165,1779713432000,-185.344189,5.104e-05,2]
[422987166,1779713432000,-504.44139142,5.258e-05,2]
[422987164,1779713432000,-169.33432357,5.016e-05,7]
[422987162,1779713432000,-200.0,5.016e-05,7]
[422987163,1779713432000,-115.90567643,5.016e-05,7]
[422987161,1779713432000,-200.0,5.016e-05,2]
[422987160,1779713432000,-200.0,5.016e-05,2]
[422987169,1779713436000,3794.8691,0.00017807,120]
[422987225,1779713438000,-500.0,5.259e-05,2]
[422987221,1779713438000,-500.0,5.259e-05,2]
[422987233,1779713438000,-500.0,5.259e-05,2]
[422987243,1779713438000,-500.0,5.259e-05,2]
[422987245,1779713438000,-500.0,5.259e-05,2]
[422987237,1779713438000,-410.28334371,5.259e-05,2]
[422987232,1779713438000,-500.0,5.259e-05,2]
[422987238,1779713438000,-249.62573207,5.259e-05,2]
[422987235,1779713438000,-500.0,5.259e-05,2]
[422987217,1779713438000,-500.0,5.259e-05,2]
[422987236,1779713438000,-500.0,5.259e-05,2]
[422987244,1779713438000,-500.0,5.259e-05,2]
[422987219,1779713438000,-500.0,5.259e-05,2]
[422987228,1779713438000,-500.0,5.259e-05,2]
[422987223,1779713438000,-593.8068447,5.259e-05,2]
[422987227,1779713438000,-500.0,5.259e-05,2]
[422987230,1779713438000,-500.0,5.259e-05,2]
[422987229,1779713438000,-500.0,5.259e-05,2]
[422987234,1779713438000,-500.0,5.259e-05,2]
[422987226,1779713438000,-500.0,5.259e-05,2]
[422987215,1779713438000,-500.0,5.259e-05,2]
[422987205,1779713438000,-300.0,5.259e-05,2]
[422987212,1779713438000,-300.0,5.259e-05,2]
[422987209,1779713438000,-300.0,5.259e-05,2]
[422987207,1779713438000,-300.0,5.259e-05,2]
[422987203,1779713438000,-778.12341812,5.259e-05,2]
[422987201,1779713438000,-5000.0,5.206e-05,2]
[422987224,1779713438000,-500.0,5.259e-05,2]
[422987239,1779713438000,-500.0,5.259e-05,2]
[422987231,1779713438000,-500.0,5.259e-05,2]
[422987242,1779713438000,-500.0,5.259e-05,2]
[422987241,1779713438000,-500.0,5.259e-05,2]
[422987273,1779713438000,-500.0,5.259e-05,2]
[422987271,1779713438000,-500.0,5.259e-05,2]
[422987270,1779713438000,-500.0,5.259e-05,2]
[422987266,1779713438000,-500.0,5.259e-05,2]
[422987264,1779713438000,-500.0,5.259e-05,2]
[422987267,1779713438000,-500.0,5.259e-05,2]
[422987269,1779713438000,-500.0,5.259e-05,2]
[422987263,1779713438000,-500.0,5.259e-05,2]
[422987265,1779713438000,-500.0,5.259e-05,2]
[422987268,1779713438000,-500.0,5.259e-05,2]
[422987262,1779713438000,-500.0,5.259e-05,2]
[422987260,1779713438000,-500.0,5.259e-05,2]
[422987261,1779713438000,-500.0,5.259e-05,2]
[422987272,1779713438000,-500.0,5.259e-05,2]
[422987249,1779713438000,-321.12531994,5.259e-05,2]
[422987253,1779713438000,-500.0,5.259e-05,2]
[422987257,1779713438000,-500.0,5.259e-05,2]
[422987246,1779713438000,-500.0,5.259e-05,2]
[422987258,1779713438000,-500.0,5.259e-05,2]
[422987256,1779713438000,-500.0,5.259e-05,2]
[422987252,1779713438000,-500.0,5.259e-05,2]
[422987247,1779713438000,-500.0,5.259e-05,2]
[422987255,1779713438000,-500.0,5.259e-05,2]
[422987250,1779713438000,-500.0,5.259e-05,2]
[422987259,1779713438000,-500.0,5.259e-05,2]
[422987240,1779713438000,-500.0,5.259e-05,2]
[422987254,1779713438000,-500.0,5.259e-05,2]
[422987248,1779713438000,-500.0,5.259e-05,2]
[422987251,1779713438000,-500.0,5.259e-05,2]
[422987304,1779713439000,-500.0,5.259e-05,2]
[422987315,1779713439000,-467.01891298,5.479e-05,7]
[422987307,1779713439000,-312.92725524,5.369e-05,2]
[422987305,1779713439000,-500.0,5.259e-05,2]
[422987303,1779713439000,-500.0,5.259e-05,2]
[422987301,1779713439000,-500.0,5.259e-05,2]
[422987309,1779713439000,-500.0,5.479e-05,2]
[422987312,1779713439000,-595.9684501,5.479e-05,2]
[422987313,1779713439000,-300.0,5.479e-05,2]
[422987317,1779713439000,-467.01891298,5.589e-05,7]
[422987314,1779713439000,-1558.0154473,5.479e-05,2]
[422987306,1779713439000,-185.344189,5.31e-05,2]
[422987319,1779713439000,-467.01891298,5.753e-05,7]
[422987320,1779713439000,-1680.0,5.784e-05,2]
[422987318,1779713439000,-185.344189,5.722e-05,2]
[422987321,1779713439000,-420.0,5.785e-05,2]
[422987316,1779713439000,-185.344189,5.516e-05,2]
[422987310,1779713439000,-500.0,5.479e-05,2]
[422987323,1779713439000,-420.0,5.785e-05,2]
[422987333,1779713439000,-300.0,5.941e-05,2]
[422987334,1779713439000,-300.0,5.941e-05,2]
[422987325,1779713439000,-89.74903927,5.827e-05,2]
[422987324,1779713439000,-420.0,5.785e-05,2]
[422987322,1779713439000,-420.0,5.785e-05,2]
[422987302,1779713439000,-500.0,5.259e-05,2]
[422987311,1779713439000,-500.0,5.479e-05,2]
[422987299,1779713439000,-500.0,5.259e-05,2]
[422987284,1779713439000,-500.0,5.259e-05,2]
[422987298,1779713439000,-500.0,5.259e-05,2]
[422987326,1779713439000,-467.01891298,5.918e-05,7]
[422987282,1779713439000,-500.0,5.259e-05,2]
[422987283,1779713439000,-500.0,5.259e-05,2]
[422987275,1779713439000,-500.0,5.259e-05,2]
[422987276,1779713439000,-500.0,5.259e-05,2]
[422987274,1779713439000,-500.0,5.259e-05,2]
[422987279,1779713439000,-500.0,5.259e-05,2]
[422987278,1779713439000,-500.0,5.259e-05,2]
[422987277,1779713439000,-500.0,5.259e-05,2]
[422987280,1779713439000,-500.0,5.259e-05,2]
[422987281,1779713439000,-500.0,5.259e-05,2]
[422987287,1779713439000,-500.0,5.259e-05,2]
[422987286,1779713439000,-500.0,5.259e-05,2]
[422987290,1779713439000,-500.0,5.259e-05,2]
[422987289,1779713439000,-500.0,5.259e-05,2]
[422987288,1779713439000,-500.0,5.259e-05,2]
[422987292,1779713439000,-500.0,5.259e-05,2]
[422987295,1779713439000,-500.0,5.259e-05,2]
[422987291,1779713439000,-500.0,5.259e-05,2]
[422987285,1779713439000,-162.22025076,5.259e-05,2]
[422987296,1779713439000,-500.0,5.259e-05,2]
[422987293,1779713439000,-500.0,5.259e-05,2]
[422987294,1779713439000,-500.0,5.259e-05,2]
[422987308,1779713439000,-500.0,5.479e-05,2]
[422987297,1779713439000,-500.0,5.259e-05,2]
[422987300,1779713439000,-500.0,5.259e-05,2]
[422987330,1779713439000,-300.0,5.941e-05,2]
[422987376,1779713439000,-500.0,8.219e-05,2]
[422987329,1779713439000,-300.0,5.941e-05,2]
[422987361,1779713439000,-793.0,7e-05,2]
[422987363,1779713439000,-823.0,7e-05,2]
[422987365,1779713439000,-369.25416118,7.369e-05,2]
[422987364,1779713439000,-166.851013,7.076e-05,2]
[422987366,1779713439000,-166.851013,7.492e-05,2]
[422987368,1779713439000,-279.66719737,7.676e-05,2]
[422987369,1779713439000,-4609.0,7.698e-05,2]
[422987367,1779713439000,-600.0,7.676e-05,2]
[422987373,1779713439000,-500.0,8.219e-05,2]
[422987375,1779713439000,-500.40219254,8.219e-05,2]
[422987371,1779713439000,-1152.0,7.7e-05,2]
[422987372,1779713439000,-869.0,7.7e-05,2]
[422987370,1779713439000,-179.0,7.7e-05,2]
[422987387,1779713439000,-500.0,8.219e-05,2]
[422987374,1779713439000,-1000.0,8.219e-05,2]
[422987377,1779713439000,-500.0,8.219e-05,2]
[422987378,1779713439000,-500.5060008,8.219e-05,2]
[422987381,1779713439000,-508.18888521,8.219e-05,2]
[422987383,1779713439000,-500.0,8.219e-05,2]
[422987379,1779713439000,-534.44284069,8.219e-05,2]
[422987380,1779713439000,-500.0,8.219e-05,2]
[422987384,1779713439000,-500.0,8.219e-05,2]
[422987386,1779713439000,-500.0,8.219e-05,2]
[422987385,1779713439000,-500.0,8.219e-05,2]
[422987327,1779713439000,-185.344189,5.928e-05,2]
[422987362,1779713439000,-823.0,7e-05,2]
[422987358,1779713439000,-166.851013,6.659e-05,2]
[422987382,1779713439000,-440.32266565,8.219e-05,2]
[422987359,1779713439000,-3292.0,6.998e-05,2]
[422987360,1779713439000,-823.0,7e-05,2]
[422987331,1779713439000,-300.0,5.941e-05,2]
[422987328,1779713439000,-300.0,5.941e-05,2]
[422987335,1779713439000,-300.0,5.941e-05,2]
[422987336,1779713439000,-300.0,5.941e-05,2]
[422987347,1779713439000,-1821.14295182,6.362e-05,2]
[422987337,1779713439000,-300.0,5.941e-05,2]
[422987348,1779713439000,-587.0,6.363e-05,2]
[422987338,1779713439000,-300.0,5.941e-05,2]
[422987342,1779713439000,-300.0,5.941e-05,2]
[422987339,1779713439000,-300.0,5.941e-05,2]
[422987341,1779713439000,-300.0,5.941e-05,2]
[422987332,1779713439000,-300.0,5.941e-05,2]
[422987340,1779713439000,-300.0,5.941e-05,2]
[422987344,1779713439000,-166.851013,6.243e-05,2]
[422987354,1779713439000,-151.0,6.5e-05,2]
[422987353,1779713439000,-151.0,6.5e-05,2]
[422987357,1779713439000,-250.24208455,6.628e-05,2]
[422987351,1779713439000,-587.0,6.363e-05,2]
[422987355,1779713439000,-1053.42249724,6.5e-05,2]
[422987349,1779713439000,-587.0,6.363e-05,2]
[422987350,1779713439000,-587.0,6.363e-05,2]
[422987345,1779713439000,-529.85704818,6.362e-05,2]
[422987343,1779713439000,-467.01891301,6.137e-05,7]
[422987352,1779713439000,-151.0,6.5e-05,2]
[422987356,1779713439000,-233.57750276,6.5e-05,2]
[422987448,1779713440000,-500.0,8.219e-05,2]
[422987444,1779713440000,-500.0,8.219e-05,2]
[422987452,1779713440000,-500.0,8.219e-05,2]
[422987446,1779713440000,-1094.4034,8.219e-05,2]
[422987450,1779713440000,-500.0,8.219e-05,2]
[422987438,1779713440000,-500.0,8.219e-05,2]
[422987436,1779713440000,-500.0,8.219e-05,2]
[422987432,1779713440000,-500.0,8.219e-05,2]
[422987434,1779713440000,-500.0,8.219e-05,2]
[422987440,1779713440000,-500.0,8.219e-05,2]
[422987469,1779713440000,-500.0,8.219e-05,2]
[422987456,1779713440000,-500.0,8.219e-05,2]
[422987467,1779713440000,-500.0,8.219e-05,2]
[422987472,1779713440000,-500.0,8.219e-05,2]
[422987457,1779713440000,-500.0,8.219e-05,2]
[422987463,1779713440000,-500.0,8.219e-05,2]
[422987459,1779713440000,-501.8223131,8.219e-05,2]